bitfinex/quotes_SOLUSD_20240915
["timestamp","ask_amount","ask_price","bid_price","bid_amount"]
[1726374970021,0.2572147,137.46,137.44,7.2757]
[1726374974625,0.2572147,137.46,137.43,13.4304]
[1726374975835,0.2572147,137.46,137.44,7.2757]
[1726374982545,0.2572147,137.46,137.43,17.47621713]
[1726374982546,0.2572147,137.46,137.45,7.2753]
[1726374999143,0.2572147,137.46,137.44,25.465]
[1726375000556,0.2572147,137.46,137.44,18.1893]
[1726375009265,0.2572147,137.46,137.43,7.2763]
[1726375011391,7.5321147,137.46,137.42,7.2768]
[1726375011673,0.2572147,137.46,137.42,7.2768]
[1726375013277,0.2572147,137.46,137.43,7.2764]
[1726375028965,0.2572147,137.46,137.44,7.2758]
[1726375033675,0.2572147,137.46,137.45,7.2753]
[1726375057919,19.7572147,137.49,137.45,7.2753]
[1726375062804,23.4337147,137.5,137.45,7.2753]
[1726375063011,20.0,137.49,137.46,7.2748]
[1726375066139,23.4337147,137.5,137.46,7.2748]
[1726375066438,20.0,137.49,137.46,7.2748]
[1726375067328,20.0,137.49,137.45,7.2752]
[1726375067801,27.2733,137.49,137.45,7.2752]
[1726375075032,20.0,137.49,137.45,7.2752]
[1726375084020,27.2732,137.49,137.45,7.2752]
[1726375102423,20.0,137.49,137.45,7.2752]
[1726375115161,7.2734,137.49,137.45,7.2752]
[1726375132470,7.5299147,137.5,137.46,7.2747]
[1726375134787,0.2572147,137.5,137.47,7.2739]
[1726375135068,0.2572147,137.5,137.48,1.454515]
[1726375135362,0.2572147,137.5,137.48,8.727815]
[1726375140647,0.2572147,137.5,137.48,7.2733]
[1726375142278,0.2572147,137.5,137.49,7.2732]
[1726375145979,0.2572147,137.5,137.49,20.04951275]
[1726375146676,0.2572147,137.5,137.49,18.59521713]
[1726375150285,0.2572147,137.5,137.49,7.2732]
[1726375154472,0.2572147,137.5,137.48,7.2737]
[1726375157569,0.2572147,137.5,137.49,7.2732]
[1726375164216,0.2572147,137.5,137.49,18.59521713]
[1726375169814,0.2572147,137.5,137.49,7.2732]
[1726375187042,0.2572147,137.5,137.49,18.59521713]
[1726375191921,0.2572147,137.5,137.49,7.2732]
[1726375208574,0.2572147,137.5,137.49,18.59521713]
[1726375210352,0.2572147,137.5,137.49,7.2732]
[1726375240912,0.2572147,137.5,137.49,7.52418]
[1726375242633,0.2572147,137.5,137.49,7.2732]
[1726375249318,0.2572147,137.5,137.49,11.2083987]
[1726375249533,0.2572147,137.5,137.49,7.2732]
[1726375266639,0.2572147,137.5,137.48,7.2734]
[1726375273041,0.2572147,137.5,137.47,18.185]
[1726375273240,0.2572147,137.5,137.47,25.4589]
[1726375279357,7.5300147,137.5,137.47,18.185]
[1726375282860,20.0,137.49,137.45,7.2752]
[1726375284059,27.2734,137.49,137.45,7.2752]
[1726375284438,7.2738,137.48,137.44,25.4647]
[1726375284747,27.275,137.46,137.42,7.2765]
[1726375285964,7.2757,137.45,137.41,18.1929]
[1726375286256,27.2749,137.46,137.41,25.4702]
[1726375295256,31.052584,137.45,137.41,18.1929]
[1726375301580,27.276,137.44,137.4,7.2778]
[1726375334000,20.12549,137.46,137.4,18.1947]
[1726375334182,20.0,137.46,137.42,7.2764]
[1726375335106,27.2749,137.46,137.42,7.2764]
[1726375335598,22.6309,137.47,137.42,7.2768]
[1726375336900,20.0,137.46,137.42,7.2768]
[1726375346013,27.275,137.46,137.42,7.2768]
[1726375346615,7.2754,137.45,137.41,7.2774]
[1726375350808,27.275,137.46,137.42,7.2768]
[1726375357017,27.275,137.46,137.41,7.2773]
[1726375357507,7.2756,137.45,137.41,7.2773]
[1726375367341,7.2756,137.45,137.4,25.4725]
[1726375368416,7.2759,137.44,137.4,25.4725]
[1726375369024,7.2759,137.44,137.4,18.1947]
[1726375382225,7.2759,137.44,137.4,25.4727]
[1726375398543,6.7759,137.44,137.4,25.4727]
[1726375409170,6.7759,137.44,137.37,24.731]
[1726375409171,16.4578,137.44,137.37,24.731]
[1726375409343,20.0,137.43,137.37,24.731]
[1726375409744,20.0,137.43,137.37,18.1981]
[1726375410367,20.0,137.41,137.37,18.1981]
[1726375410544,20.0,137.43,137.37,18.1981]
[1726375411275,7.2774,137.41,137.37,25.4776]
[1726375417660,20.0,137.41,137.37,25.4776]
[1726375420278,20.0,137.41,137.38,7.279]
[1726375427760,20.0,137.43,137.39,7.2784]
[1726375429189,27.2764,137.43,137.39,7.2784]
[1726375434461,19.344391,137.47,137.4,11.32201713]
[1726375434663,20.0,137.46,137.4,11.32201713]
[1726375435563,27.2752,137.46,137.41,25.4702]
[1726375442090,7.2754,137.45,137.41,25.4702]
[1726375442493,20.0,137.44,137.41,25.4702]
[1726375443990,27.2748,137.46,137.42,7.2769]
[1726375444594,20.0,137.46,137.42,7.2769]
[1726375444771,23.7316,137.47,137.43,7.2764]
[1726375444772,7.2743,137.47,137.43,7.2764]
[1726375446396,20.0,137.46,137.43,7.2764]
[1726375467291,20.0,137.46,137.42,7.2768]
[1726375471715,20.0,137.46,137.42,18.59881713]
[1726375472417,20.0,137.46,137.42,7.2768]
[1726375472597,20.0,137.46,137.42,18.59881713]
[1726375474621,20.0,137.46,137.42,7.2768]
[1726375474914,20.0,137.49,137.41,11.32201713]
[1726375475106,16.8075047,137.5,137.45,7.2753]
[1726375475293,7.2737,137.48,137.44,7.2758]
[1726375476495,7.2737,137.48,137.43,7.2763]
[1726375477204,7.2743,137.47,137.42,7.2768]
[1726375479601,27.2749,137.46,137.41,25.4707]
[1726375483326,20.0,137.46,137.42,7.2766]
[1726375484419,19.0,137.46,137.42,7.2766]
[1726375490832,7.275,137.46,137.41,25.4707]
[1726375495866,0.12549,137.47,137.41,25.4707]
[1726375495867,7.2755,137.45,137.41,18.1934]
[1726375496129,7.276,137.44,137.4,6.3953]
[1726375497641,34.19519,137.47,137.39,7.2784]
[1726375497642,27.2764,137.43,137.39,7.2784]
[1726375500237,27.2764,137.43,137.38,25.4759]
[1726375501034,20.0,137.41,137.37,7.2795]
[1726375501935,44.027864,137.42,137.37,7.2795]
[1726375502317,7.2776,137.41,137.37,7.2795]
[1726375503015,7.2776,137.41,137.36,13.6907]
[1726375503237,44.153354,137.42,137.36,13.6907]
[1726375503238,27.278,137.4,137.36,13.6907]
[1726375503537,7.278,137.4,137.36,13.6907]
[1726375504242,7.278,137.4,137.36,7.2799]
[1726375506729,7.278,137.4,137.35,25.7389147]
[1726375510639,44.153354,137.42,137.35,25.7389147]
[1726375510640,44.153354,137.42,137.35,0.2572147]
[1726375510935,7.2792,137.38,137.35,0.2572147]
[1726375511143,20.0,137.37,137.35,0.2572147]
[1726375512033,27.2801,137.37,137.35,0.2572147]
[1726375512231,7.279,137.38,137.35,0.2572147]
[1726375512549,20.0,137.37,137.35,0.2572147]
[1726375520564,7.2797,137.37,137.35,0.2572147]
[1726375521145,7.2801,137.36,137.35,0.2572147]
[1726375521441,51.433454,137.36,137.35,0.2572147]
[1726375533940,51.433454,137.36,137.31,0.2572147]
[1726375533941,20.0,137.33,137.31,0.2572147]
[1726375534259,51.184574,137.32,137.31,0.2572147]
[1726375534463,51.310064,137.32,137.31,0.2572147]
[1726375535442,51.435554,137.32,137.31,0.2572147]
[1726375535646,51.435554,137.32,137.28,5.9967147]
[1726375535647,20.0,137.31,137.28,5.9967147]
[1726375536656,20.0,137.31,137.28,13.2809147]
[1726375539063,27.2828,137.31,137.28,5.9967147]
[1726375539367,23.902374,137.3,137.27,0.2572147]
[1726375539545,20.0,137.31,137.27,7.5419147]
[1726375540242,27.2831,137.31,137.27,0.2572147]
[1726375540467,27.2831,137.31,137.27,7.2848]
[1726375543366,20.0,137.31,137.27,7.2848]
[1726375543546,20.0,137.31,137.28,7.2842]
[1726375543749,20.12549,137.32,137.29,7.2837]
[1726375543946,20.0,137.32,137.29,7.2837]
[1726375548780,20.0,137.32,137.31,7.2827]
[1726375549473,20.0,137.34,137.3,7.2832]
[1726375552475,20.0,137.34,137.31,7.2827]
[1726375552973,0.2572147,137.37,137.34,7.2808]
[1726375553166,0.2572147,137.37,137.33,11.32201713]
[1726375553564,0.2572147,137.37,137.34,11.32201713]
[1726375553757,0.2572147,137.37,137.35,11.32201713]
[1726375554355,0.2572147,137.37,137.36,11.32201713]
[1726375554552,0.2572147,137.37,137.36,7.2801]
[1726375554754,0.2572147,137.37,137.35,7.2805]
[1726375555363,0.2572147,137.37,137.36,7.2801]
[1726375571192,0.2572147,137.37,137.36,18.60211713]
[1726375572993,0.2572147,137.37,137.36,7.2801]
[1726375577583,0.2572147,137.37,137.36,18.60211713]
[1726375577783,0.2572147,137.37,137.36,20.05792804]
[1726375578303,0.2572147,137.37,137.36,18.60211713]
[1726375579689,0.2572147,137.37,137.36,20.05779617]
[1726375581304,0.2572147,137.37,137.36,18.60211713]
[1726375583208,0.2572147,137.37,137.36,7.2801]
[1726375603923,0.2572147,137.37,137.35,18.60231713]
[1726375604122,0.2572147,137.37,137.35,7.2803]
[1726375608733,0.2572147,137.37,137.36,7.2801]
[1726375609330,0.2572147,137.37,137.36,18.60211713]
[1726375615842,0.2572147,137.37,137.36,7.2801]
[1726375617537,0.2572147,137.37,137.36,18.60211713]
[1726375626363,0.2572147,137.37,137.36,7.2801]
[1726375629862,0.2572147,137.37,137.35,7.2805]
[1726375633236,0.2572147,137.37,137.35,18.60251713]
[1726375635062,0.2572147,137.37,137.36,7.2801]
[1726375635236,0.2572147,137.37,137.36,8.73591894]
[1726375635443,0.2572147,137.37,137.36,7.2801]
[1726375635751,0.2572147,137.37,137.36,8.73589155]
[1726375636151,0.2572147,137.37,137.36,7.2801]
[1726375637774,0.2572147,137.37,137.36,8.73588847]
[1726375638066,0.2572147,137.37,137.36,20.05790581]
[1726375638450,0.2572147,137.37,137.36,18.60211713]
[1726375643253,0.2572147,137.37,137.36,7.2801]
[1726375648878,0.2572147,137.37,137.35,7.2805]
[1726375649451,0.2572147,137.37,137.36,7.2801]
[1726375652989,0.2572147,137.37,137.36,20.05794491]
[1726375660292,0.2572147,137.37,137.36,8.73592778]
[1726375663187,0.2572147,137.37,137.36,7.2801]
[1726375664792,0.2572147,137.37,137.36,42.37900113]
[1726375666602,0.2572147,137.37,137.36,46.31821634]
[1726375673311,0.2572147,137.37,137.36,42.37900113]
[1726375674101,0.2572147,137.37,137.36,42.50449113]
[1726375674404,0.2572147,137.37,137.36,46.44356304]
[1726375675204,0.2572147,137.37,137.36,46.31807304]
[1726375675913,0.2572147,137.37,137.36,34.99605591]
[1726375676110,0.2572147,137.37,137.36,46.31807304]
[1726375678019,0.2572147,137.37,137.36,42.37900113]
[1726375678207,0.2572147,137.37,137.36,46.31807029]
[1726375678712,0.2572147,137.37,137.36,42.37900113]
[1726375678914,0.2572147,137.37,137.36,46.31807029]
[1726375679117,0.2572147,137.37,137.36,42.37900113]
[1726375683013,0.2572147,137.37,137.36,18.60211713]
[1726375684031,0.2572147,137.37,137.36,43.83461474]
[1726375684238,0.2572147,137.37,137.36,42.37900113]
[1726375689530,0.2572147,137.37,137.36,31.056984]
[1726375689909,0.2572147,137.37,137.36,42.37900113]
[1726375695637,0.2572147,137.37,137.36,31.056984]
[1726375695838,0.2572147,137.37,137.36,7.2801]
[1726375701242,0.2572147,137.37,137.36,11.2191956]
[1726375701941,0.2572147,137.37,137.36,22.54121273]
[1726375705140,0.2572147,137.37,137.36,18.60211713]
[1726375707461,0.2572147,137.37,137.36,7.2801]
[1726375707667,0.2572147,137.37,137.35,7.2805]
[1726375707955,0.2572147,137.37,137.36,8.73603279]
[1726375708151,0.2572147,137.37,137.36,7.2801]
[1726375713685,0.2572147,137.37,137.35,7.2802]
[1726375713955,0.2572147,137.37,137.36,7.2801]
[1726375718271,0.2572147,137.37,137.34,25.4832]
[1726375718768,0.2572147,137.37,137.35,7.2805]
[1726375720571,0.2572147,137.37,137.34,25.4835]
[1726375723757,0.2572147,137.37,137.35,7.2806]
[1726375746267,0.2572147,137.37,137.36,7.2801]
[1726375751377,0.2572147,137.37,137.35,7.2804]
[1726375753696,0.2572147,137.37,137.36,7.2801]
[1726375829168,0.2572147,137.37,137.36,43.96019085]
[1726375829451,0.2572147,137.37,137.36,42.75547113]
[1726375833344,0.2572147,137.37,137.36,44.21079791]
[1726375834517,0.2572147,137.41,137.4,25.473]
[1726375834727,0.2572147,137.41,137.4,36.79501713]
[1726375835844,0.2572147,137.41,137.4,60.57190113]
[1726375836647,0.2572147,137.41,137.4,62.0269637]
[1726375836949,0.2572147,137.41,137.4,62.1524537]
[1726375837246,0.2572147,137.41,137.4,67.25618113]
[1726375837425,0.2572147,137.41,137.4,67.38167113]
[1726375838255,0.2572147,137.41,137.4,82.44157113]
[1726375839842,0.2572147,137.41,137.4,83.89633475]
[1726375841038,0.2572147,137.41,137.4,82.44157113]
[1726375843031,0.2572147,137.41,137.4,83.89635171]
[1726375843221,0.2572147,137.41,137.4,82.44157113]
[1726375843420,0.2572147,137.46,137.45,25.4637]
[1726375843641,0.2572147,137.46,137.45,60.56260113]
[1726375845550,0.2572147,137.46,137.45,60.68809113]
[1726375845945,0.2572147,137.46,137.45,62.14257063]
[1726375847032,0.2572147,137.46,137.45,60.68809113]
[1726375848152,0.2572147,137.46,137.45,62.14259326]
[1726375848454,0.2572147,137.46,137.45,60.68809113]
[1726375849240,0.2572147,137.46,137.45,62.14259391]
[1726375849558,0.2572147,137.46,137.45,62.14259414]
[1726375849758,0.2572147,137.46,137.45,60.68809113]
[1726375850054,0.2572147,137.46,137.45,62.14259476]
[1726375850556,0.2572147,137.46,137.45,60.81358113]
[1726375850932,0.2572147,137.46,137.45,60.93907113]
[1726375861857,0.2572147,137.46,137.45,60.68809113]
[1726375863338,0.2572147,137.46,137.45,60.56260113]
[1726375863542,0.2572147,137.46,137.45,25.4637]
[1726375864166,0.2572147,137.46,137.45,26.91838909]
[1726375865558,0.2572147,137.46,137.45,38.24040622]
[1726375866068,0.2572147,137.46,137.45,60.68809113]
[1726375881260,0.2572147,137.46,137.45,60.93907113]
[1726375883787,0.2572147,137.46,137.45,60.68809113]
[1726375888889,0.2572147,137.46,137.45,60.56260113]
[1726375889857,0.2572147,137.46,137.45,25.4637]
[1726375896678,0.2572147,137.46,137.45,26.91847086]
[1726375896894,0.2572147,137.46,137.45,25.4637]
[1726375899095,0.2572147,137.46,137.45,26.91847415]
[1726375899991,0.2572147,137.46,137.45,25.4637]
[1726375900665,0.2572147,137.46,137.41,18.1936]
[1726375900870,0.2572147,137.46,137.42,7.2768]
[1726375900871,7.5321147,137.46,137.42,7.2768]
[1726375901177,0.2572147,137.46,137.43,7.2763]
[1726375908994,7.5321147,137.46,137.42,7.2768]
[1726375909597,7.5321147,137.46,137.41,25.4709]
[1726375910886,7.5321147,137.46,137.42,7.2768]
[1726375913198,7.2754,137.45,137.41,18.1936]
[1726375913491,16.6289,137.44,137.41,18.1936]
[1726375913812,16.6289,137.44,137.39,7.2783]
[1726375913813,23.9048,137.44,137.39,7.2783]
[1726375921906,7.52758,137.43,137.39,7.2783]
[1726375922309,7.52758,137.43,137.38,25.4761]
[1726375922598,7.52758,137.43,137.39,7.2784]
[1726375922794,7.52758,137.43,137.38,25.4761]
[1726375926717,0.12549,137.42,137.38,18.1971]
[1726375928386,7.2775,137.41,137.38,18.1971]
[1726375929406,16.2848,137.4,137.37,7.2794]
[1726375939914,43.7772,137.43,137.39,7.2785]
[1726375944799,43.7772,137.43,137.38,7.2789]
[1726375946516,7.277,137.42,137.38,7.2789]
[1726375947719,7.277,137.42,137.37,25.4778]
[1726375947923,0.12549,137.41,137.37,25.4778]
[1726375948623,7.40299,137.41,137.37,25.4778]
[1726375956413,7.40299,137.41,137.37,18.1983]
[1726375960421,7.40299,137.41,137.37,25.4778]
[1726375963109,7.40299,137.41,137.37,18.1983]
[1726375964813,7.40299,137.41,137.37,25.4778]
[1726375998066,36.5007,137.43,137.37,18.1983]
[1726375998443,43.7774,137.43,137.39,7.2785]
[1726375999656,43.7774,137.43,137.38,7.2789]
[1726375999857,27.2767,137.43,137.39,7.2781]
[1726376000846,7.2769,137.42,137.38,7.2789]
[1726376001046,20.0,137.41,137.38,7.2789]
[1726376015259,20.0,137.41,137.37,25.4777]
[1726376017773,7.2775,137.41,137.37,25.4777]
[1726376018353,20.0,137.43,137.37,18.1983]
[1726376018354,7.278,137.4,137.37,18.1983]
[1726376025176,7.278,137.4,137.36,7.2801]
[1726376025669,7.278,137.4,137.35,7.2804]
[1726376029681,7.278,137.4,137.36,7.28]
[1726376041869,20.0,137.41,137.37,1.45588122]
[1726376042076,20.0,137.41,137.36,18.1999]
[1726376042471,20.0,137.42,137.36,18.1999]
[1726376043393,27.277,137.42,137.38,7.2789]
[1726376049198,20.0,137.42,137.38,7.2789]
[1726376050498,20.0,137.42,137.39,7.2785]
[1726376052301,20.0,137.42,137.38,7.2789]
[1726376056003,7.2775,137.41,137.37,7.2795]
[1726376079619,7.2775,137.41,137.37,8.73519406]
[1726376079997,27.2771,137.42,137.37,8.73519406]
[1726376080196,27.2771,137.42,137.37,7.2795]
[1726376086621,27.2771,137.42,137.36,25.4799]
[1726376086622,20.0,137.42,137.36,25.4799]
[1726376088429,7.278,137.4,137.36,25.4799]
[1726376089836,7.2776,137.41,137.36,25.4799]
[1726376104750,7.2776,137.41,137.37,7.2795]
[1726376108820,7.2776,137.41,137.36,25.4798]
[1726376117629,7.2776,137.41,137.36,25.4598]
[1726376128678,7.2776,137.41,137.37,7.2795]
[1726376133574,7.278,137.4,137.36,25.4598]
[1726376144269,7.2775,137.41,137.37,7.2795]
[1726376144491,7.40299,137.41,137.37,7.2795]
[1726376152796,27.2771,137.42,137.37,7.2795]
[1726376153880,27.2771,137.42,137.38,7.2789]
[1726376156298,10.43318722,137.44,137.41,7.2773]
[1726376156299,7.60162169,137.44,137.41,7.2773]
[1726376156530,0.2572147,137.46,137.42,8.73168153]
[1726376156796,0.2572147,137.46,137.43,7.2764]
[1726376158000,20.2572147,137.46,137.43,7.2764]
[1726376158713,20.2572147,137.46,137.42,7.2768]
[1726376159016,27.5320147,137.46,137.42,7.2768]
[1726376160400,27.5320147,137.46,137.41,7.2774]
[1726376160606,7.2754,137.45,137.41,7.2774]
[1726376163799,27.5321147,137.46,137.41,7.2774]
[1726376181648,27.5321147,137.46,137.42,7.2768]
[1726376234090,27.5321147,137.46,137.4,18.1945]
[1726376234091,7.2755,137.45,137.41,7.2773]
[1726376235385,20.2572147,137.46,137.38,6.3873]
[1726376235588,7.276,137.44,137.4,7.2778]
[1726376236470,7.2754,137.45,137.4,7.2778]
[1726376239793,7.2754,137.45,137.41,7.2774]
[1726376244113,7.2754,137.45,137.39,18.1959]
[1726376244114,0.12549,137.45,137.39,18.1959]
[1726376244310,0.25098,137.43,137.39,18.1959]
[1726376245370,7.52748,137.43,137.39,25.4743]
[1726376253811,7.2771,137.42,137.39,18.1959]
[1726376253982,7.40259,137.42,137.37,7.2794]
[1726376254180,7.2777,137.41,137.37,7.2794]
[1726376254409,7.2777,137.41,137.36,25.4795]
[1726376254585,0.12549,137.4,137.36,25.4795]
[1726376256994,0.12549,137.4,137.35,6.5813]
[1726376256995,0.12549,137.4,137.35,7.2805]
[1726376257324,0.12549,137.4,137.34,7.2811]
[1726376257325,20.0,137.38,137.34,7.2811]
[1726376261226,7.2793,137.38,137.34,7.2811]
[1726376267821,7.2793,137.38,137.33,18.2033]
[1726376268008,0.12549,137.37,137.33,18.2033]
[1726376268516,0.12549,137.37,137.33,25.4846]
[1726376288363,0.12549,137.37,137.34,7.2811]
[1726376302876,20.0,137.38,137.34,7.2811]
[1726376317101,7.279,137.38,137.34,7.2811]
[1726376323208,31.306464,137.39,137.35,7.2806]
[1726376323413,20.0,137.38,137.33,18.2033]
[1726376324407,20.0,137.38,137.35,7.2805]
[1726376329914,20.0,137.38,137.34,7.281]
[1726376339817,27.2793,137.38,137.34,7.281]
[1726376346823,27.2793,137.38,137.33,25.4848]
[1726376347029,7.2796,137.37,137.33,25.4848]
[1726376351828,7.2822,137.33,137.31,0.2572147]
[1726376352127,44.153354,137.36,137.31,0.2572147]
[1726376352424,43.902374,137.36,137.31,7.5395147]
[1726376353004,51.182574,137.36,137.31,7.5395147]
[1726376364035,7.2812,137.34,137.31,0.2572147]
[1726376364437,7.53168,137.35,137.31,0.2572147]
[1726376367833,7.2812,137.34,137.31,0.2572147]
[1726376377830,7.53178,137.35,137.31,0.2572147]
[1726376379937,7.2808,137.35,137.31,7.5399147]
[1726376380644,27.2802,137.36,137.31,7.5399147]
[1726376387146,7.2806,137.35,137.31,7.5399147]
[1726376390342,7.2812,137.34,137.31,0.2572147]
[1726376390529,7.40669,137.34,137.31,0.2572147]
[1726376403369,7.2807,137.35,137.31,7.5396147]
[1726376407969,7.2807,137.35,137.31,0.2572147]
[1726376408862,7.40679,137.34,137.31,0.2572147]
[1726376414671,23.776884,137.33,137.31,0.2572147]
[1726376421268,31.058684,137.33,137.31,0.2572147]
[1726376422365,20.0,137.32,137.31,0.2572147]
[1726376425175,51.310064,137.32,137.31,0.2572147]
[1726376425379,51.435554,137.32,137.31,0.2572147]
[1726376431079,51.435554,137.32,137.27,0.2572147]
[1726376431080,7.2834,137.3,137.27,0.2572147]
[1726376431272,20.0,137.29,137.27,0.2572147]
[1726376431688,7.53528,137.28,137.27,0.2572147]
[1726376431984,51.437654,137.28,137.27,0.2572147]
[1726376434061,20.12549,137.28,137.27,0.2572147]
[1726376434264,43.902374,137.28,137.27,0.2572147]
[1726376434992,51.312164,137.28,137.27,0.2572147]
[1726376435165,51.437654,137.28,137.27,0.2572147]
[1726376474014,7.2865,137.24,137.23,0.2572147]
[1726376474216,51.439854,137.24,137.23,0.2572147]
[1726376476316,51.439854,137.24,137.11,36.4669]
[1726376476317,10.0,137.19,137.06,8.05087759]
[1726376476525,10.0,137.17,137.06,8.05087759]
[1726376476842,10.0,137.17,137.12,11.32201713]
[1726376477396,10.0,137.17,137.11,11.32201713]
[1726376478298,10.0,137.17,137.15,7.2912]
[1726376482711,10.0,137.15,137.13,6.2179]
[1726376484033,10.0,137.15,137.14,7.2916]
[1726376485131,10.0,137.19,137.14,11.32201713]
[1726376485430,10.0,137.19,137.17,7.2898]
[1726376489127,10.0,137.19,137.14,11.32201713]
[1726376489717,10.0,137.17,137.13,17.53991713]
[1726376497110,10.0,137.17,137.13,11.32201713]
[1726376497318,10.0,137.17,137.11,11.32201713]
[1726376498016,10.0,137.17,137.12,11.32201713]
[1726376502442,10.0,137.17,137.1,0.12549]
[1726376502619,10.0,137.17,137.11,11.32201713]
[1726376503952,10.0,137.15,137.11,11.32201713]
[1726376511854,10.0,137.15,137.12,11.32201713]
[1726376512150,10.0,137.15,137.13,11.32201713]
[1726376514246,10.0,137.17,137.13,11.32201713]
[1726376520757,10.0,137.17,137.14,11.32201713]
[1726376522458,10.0,137.17,137.15,11.32201713]
[1726376525254,0.307362,137.18,137.15,11.32201713]
[1726376528558,0.307362,137.18,137.16,11.32201713]
[1726376534268,0.307362,137.18,137.17,11.32201713]
[1726376539143,10.0,137.19,137.17,11.32201713]
[1726376539466,0.3294465,137.18,137.17,11.32201713]
[1726376541638,0.3294465,137.18,137.17,11.44750713]
[1726376541876,0.3294465,137.18,137.17,17.60400713]
[1726376554173,0.3294465,137.18,137.17,17.47851713]
[1726376555076,0.3294465,137.18,137.17,6.1565]
[1726376555281,0.3294465,137.18,137.17,17.47851713]
[1726376557591,0.3294465,137.18,137.17,11.32201713]
[1726376559989,0.3294465,137.18,137.14,1.4576446]
[1726376560161,10.0,137.17,137.13,11.32201713]
[1726376560367,10.0,137.17,137.06,8.00496122]
[1726376560592,10.0,137.17,137.13,11.32201713]
[1726376562084,25.5342,137.17,137.13,11.32201713]
[1726376562673,25.5342,137.17,137.12,11.32201713]
[1726376574308,25.5342,137.17,137.13,11.32201713]
[1726376574488,25.5342,137.17,137.12,11.32201713]
[1726376574892,25.5342,137.17,137.07,24.027864]
[1726376575089,25.5342,137.17,137.12,11.32201713]
[1726376576094,25.5342,137.17,137.13,11.32201713]
[1726376577326,25.5342,137.17,137.12,11.32201713]
[1726376582691,15.5342,137.17,137.13,11.32201713]
[1726376583516,25.5342,137.17,137.13,11.32201713]
[1726376586493,25.5342,137.17,137.12,11.32201713]
[1726376600532,25.5342,137.17,137.13,11.32201713]
[1726376604130,25.5342,137.17,137.11,11.32201713]
[1726376604336,15.5342,137.17,137.13,11.32201713]
[1726376604501,15.5342,137.17,137.14,11.32201713]
[1726376622226,15.5342,137.17,137.15,11.32201713]
[1726376622435,15.5342,137.17,137.16,11.32201713]
[1726376626722,15.5342,137.17,137.16,10.82201713]
[1726376627250,0.3294465,137.18,137.16,10.82201713]
[1726376628138,0.3294465,137.18,137.17,12.90528599]
[1726376628348,0.3294465,137.18,137.17,36.80765999]
[1726376628752,0.3294465,137.18,137.17,35.34988113]
[1726376629343,0.3294465,137.18,137.17,11.32201713]
[1726376641945,0.3294465,137.18,137.17,35.34988113]
[1726376646946,0.251844,137.22,137.18,23.902374]
[1726376647141,0.251844,137.22,137.21,11.32201713]
[1726376652540,0.251844,137.22,137.21,35.22439113]
[1726376652864,0.251844,137.22,137.21,35.34988113]
[1726376661862,0.251844,137.22,137.21,35.47537113]
[1726376662168,0.251844,137.26,137.25,11.32201713]
[1726376663472,0.251844,137.26,137.24,11.32201713]
[1726376665873,10.251844,137.26,137.24,11.32201713]
[1726376673275,10.251844,137.26,137.23,11.32201713]
[1726376678093,10.251844,137.26,137.22,11.32201713]
[1726376680782,10.251844,137.26,137.23,11.32201713]
[1726376685092,10.251844,137.26,137.24,11.32201713]
[1726376690295,10.251844,137.26,137.19,24.027864]
[1726376690490,10.0,137.24,137.22,11.32201713]
[1726376706004,10.251844,137.26,137.23,11.32201713]
[1726376706208,10.251844,137.26,137.24,11.32201713]
[1726376710420,10.251844,137.26,137.23,11.32201713]
[1726376711011,10.251844,137.26,137.22,11.32201713]
[1726376711012,10.0,137.24,137.22,11.32201713]
[1726376713515,0.251844,137.26,137.23,11.32201713]
[1726376713811,0.251844,137.26,137.19,24.027864]
[1726376713812,0.251844,137.26,137.24,11.32201713]
[1726376714117,0.251844,137.26,137.23,11.32201713]
[1726376719310,0.251844,137.26,137.24,11.32201713]
[1726376720919,10.0,137.25,137.22,11.32201713]
[1726376731625,10.0,137.25,137.21,11.32201713]
[1726376731927,10.0,137.25,137.22,3.94361883]
[1726376732111,10.0,137.25,137.21,11.32201713]